[Event "Superbet Rapid GCT 2019"]
[Site "Bucharest"]
[Date "2019.11.06"]
[Round "1.1"]
[White "Karjakin, Sergey"]
[Black "Korobov, Anton"]
[Result "1/2-1/2"]
[ECO "B72"]
[WhiteElo "2760"]
[BlackElo "2679"]
[Annotator "RC"]
[PlyCount "75"]
[EventDate "2019.11.06"]
[EventType "tourn"]
[EventCountry "ROU"]
[SourceTitle "playchess.com"]
[Source "ChessBase"]
[SourceQuality "1"]
[TimeMode "Bronstein"]
[TimeControl "1500+10"]

1. e4 {[%emt 0:00:00]} c5 {[%emt 0:00:00]} 2. Nf3 {[%emt 0:00:00]} d6 {[%emt 0:00:00]} 3. d4 {[%emt 0:00:00]} cxd4 {[%emt 0:00:00]} 4. Nxd4 {[%emt 0:00:00]} Nf6 {[%emt 0:00:00]} 5. Nc3 {[%emt 0:00:00]} a6 {[%emt 0:00:00]} 6. Bd3 {[%emt 0:00:00]} g6 {[%emt 0:00:00]} 7. Be3 {[%emt 0:00:00]} Bg7 {[%emt 0:00:07]} 8. f3 {[%emt 0:00:00]} b5 {[%emt 0:00:42]} 9. Qd2 {[%emt 0:00:55]} Bb7 {[%emt 0:01:51]} 10. a4 {[%emt 0:01:19]} b4 {[%emt 0:00:17]} 11. Na2 {[%emt 0:00:18]} a5 {[%emt 0:00:49]} 12. c3 {[%emt 0:00:10]} bxc3 {[%emt 0:01:20]} 13. Bb5+ {[%emt 0:00:16]} Nbd7 {[%emt 0:00:45]} 14. Nxc3 {[%emt 0:00:10]} O-O {[%emt 0:00:46]} 15. O-O {[%emt 0:00:10]} Nc5 {[%emt 0:00:12]} 16. Qf2 {[%emt 0:02:22]} Rc8 {[%emt 0:01:01]} 17. Rfd1 {[%emt 0:00:10]} e5 {[%emt 0:01:39]} 18. Nc2 {[%emt 0:01:03]} Qe7 {[%emt 0:00:10]} 19. Ra3 {[%emt 0:04:04]} Rfd8 {[%emt 0:02:15]} 20. b4 {[%emt 0:00:34]} axb4 {[%emt 0:00:28]} 21. Nxb4 {[%emt 0:00:10]} d5 {[%emt 0:00:10]} 22. Nbxd5 {[%emt 0:00:50]} Nxd5 {[%emt 0:00:35]} 23. Nxd5 {[%emt 0:00:10]} Bxd5 {[%emt 0:00:38]} 24. exd5 {[%emt 0:00:10]} e4 {[%emt 0:02:36]} 25. Ra2 {[%emt 0:00:49]} exf3 {[%emt 0:00:30]} 26. gxf3 {[%emt 0:01:37]} Nb7 {[%emt 0:01:16]} 27. a5 {[%emt 0:04:11]} Qb4 {[%emt 0:00:28]} 28. Ba6 {[%emt 0:02:30]} Qb3 {[%emt 0:00:10]} 29. Bxb7 {[%emt 0:02:45]} Qxd1+ {[%emt 0:00:12]} 30. Kg2 {[%emt 0:00:10]} Rb8 {[%emt 0:03:23]} 31. a6 {[%emt 0:00:10]} Qb1 {[%emt 0:01:19]} 32. Qc2 {[%emt 0:00:35]} Rxb7 {[%emt 0:00:20]} 33. axb7 {[%emt 0:00:10]} Qxb7 {[%emt 0:00:10]} 34. Qc6 {[%emt 0:00:10]} Qe7 {[%emt 0:01:37]} 35. Ra8 {[%emt 0:00:55]} Rxa8 {[%emt 0:00:16]} 36. Qxa8+ {[%emt 0:00:10]} Bf8 {[%emt 0:00:10]} 37. Bh6 {[%emt 0:00:48]} Qe2+ {[%emt 0:00:10]} 38. Kg1 {[%emt 0:00:23]} 1/2-1/2